bitfinex/quotes_SOLUSD_20241113
["timestamp","ask_amount","ask_price","bid_price","bid_amount"]
[1731511657816,0.1,214.97,214.74,13.0964]
[1731511658013,161.6,214.96,214.74,13.0964]
[1731511658414,161.6,214.96,214.75,5.27276056]
[1731511658649,0.1,214.95,214.75,5.27276056]
[1731511658829,161.6,214.95,214.74,88.8360292]
[1731511659033,161.6,214.99,214.75,5.27276056]
[1731511659334,161.6,214.99,214.77,70.0]
[1731511659694,161.6,214.99,214.78,5.27276056]
[1731511659827,161.6,214.99,214.79,0.93027405]
[1731511660027,4.6484,215.13,214.79,0.93027405]
[1731511660028,161.6,215.04,214.81,23.776884]
[1731511660343,161.6,215.06,214.91,20.0]
[1731511660638,50.10513235,215.17,214.9,36.057584]
[1731511660639,161.6,215.11,214.96,23.776884]
[1731511660819,161.6,215.1,215.01,20.0]
[1731511661022,161.6,215.09,215.03,20.0]
[1731511661223,161.6,215.09,215.04,23.776884]
[1731511661534,161.6,215.08,215.06,23.776884]
[1731511661835,161.6,215.16,215.07,20.0]
[1731511662009,32.9205,215.19,215.1,23.776884]
[1731511662010,161.6,215.15,215.1,23.776884]
[1731511662230,161.6,215.2,215.15,20.0]
[1731511662508,13.4921,215.25,215.16,23.776884]
[1731511662509,0.1,215.22,215.16,23.776884]
[1731511662697,0.1,215.23,215.16,23.776884]
[1731511662698,161.6,215.21,215.16,23.776884]
[1731511663313,161.6,215.22,215.16,23.776884]
[1731511663605,0.1,215.2,214.97,23.776884]
[1731511663795,161.6,215.19,215.02,20.0]
[1731511663996,161.6,215.18,215.04,20.0]
[1731511664195,161.6,215.18,215.06,20.0]
[1731511664503,161.6,215.18,215.08,20.0]
[1731511664825,161.6,215.22,215.08,20.0]
[1731511665117,0.1,215.15,214.97,5.75086591]
[1731511665316,161.6,215.14,214.94,5.27276056]
[1731511666191,161.6,215.14,214.94,10.95850428]
[1731511666412,161.6,215.14,214.95,5.27276056]
[1731511666613,161.6,215.14,214.96,20.0]
[1731511666797,161.6,215.14,214.99,23.776884]
[1731511667002,161.6,215.13,214.95,5.27276056]
[1731511667254,0.1,215.23,214.99,70.0]
[1731511667687,161.6,215.22,215.0,5.27276056]
[1731511668374,161.6,215.22,215.05,43.776884]
[1731511668587,161.6,215.25,215.05,43.776884]
[1731511668977,0.1,215.24,215.05,43.776884]
[1731511669797,161.6,215.25,215.05,43.776884]
[1731511670019,161.6,215.24,215.05,43.776884]
[1731511670201,161.6,215.23,215.05,43.776884]
[1731511670605,161.6,215.23,215.05,49.35171935]
[1731511671423,161.6,215.25,215.05,49.35171935]
[1731511673019,0.1,215.24,215.05,49.35171935]
[1731511673714,161.6,215.23,215.05,5.57483535]
[1731511673901,0.2,215.2,215.04,37.3655323]
[1731511674100,161.6,215.19,215.04,5.4721323]
[1731511674302,0.1,215.16,214.97,44.0958]
[1731511674517,161.6,215.15,214.97,44.0958]
[1731511674712,161.6,215.15,214.97,49.36856056]
[1731511675334,161.6,215.15,214.98,5.27276056]
[1731511675929,161.7,215.15,214.97,49.86290584]
[1731511676423,4.646,215.24,214.97,49.86290584]
[1731511676424,0.2,215.11,214.97,49.86290584]
[1731511676624,161.7,215.1,214.97,49.86290584]
[1731511676922,161.6,215.09,214.97,17.96950584]
[1731511677128,0.1,215.04,214.9,12.2024]
[1731511677303,161.6,215.03,214.9,12.2024]
[1731511677500,161.6,215.02,214.9,17.99160764]
[1731511678238,30.3048,215.13,214.9,17.99160764]
[1731511678239,0.1,215.06,214.9,17.99160764]
[1731511678715,0.1,215.04,214.9,17.99160764]
[1731511679026,0.2,215.02,214.9,17.99160764]
[1731511679212,0.1,215.05,214.9,17.99160764]
[1731511679415,0.1,215.03,214.9,17.99160764]
[1731511679735,161.6,215.02,214.9,17.99160764]
[1731511679930,161.6,215.08,214.9,17.99160764]
[1731511680106,161.7,215.08,214.9,17.99160764]
[1731511680312,0.1,215.06,214.9,17.99160764]
[1731511680759,161.6,215.08,214.9,17.99160764]
[1731511680760,161.6,215.08,214.91,20.0]
[1731511680933,161.7,215.08,214.91,20.0]
[1731511681125,0.1,214.99,214.9,17.99160764]
[1731511681312,161.6,214.98,214.84,12.2024]
[1731511681612,0.1,215.0,214.84,12.2024]
[1731511681835,0.1,214.97,214.84,12.2024]
[1731511682015,0.1,215.0,214.84,12.2024]
[1731511682325,161.6,214.99,214.84,12.2024]
[1731511682527,161.6,214.98,214.84,17.79212386]
[1731511683031,161.6,215.01,214.84,23.06488442]
[1731511683631,0.1,214.99,214.84,17.79212386]
[1731511683879,161.6,215.0,214.85,20.0]
[1731511684528,0.1,215.08,214.86,0.93022319]
[1731511684742,161.6,215.07,214.87,20.0]
[1731511684920,0.1,214.99,214.84,17.79212386]
[1731511685112,0.1,215.0,214.84,17.79212386]
[1731511685811,0.1,215.04,214.84,17.79212386]
[1731511686017,161.6,215.03,214.85,20.0]
[1731511686309,0.1,215.08,214.85,90.0]
[1731511686518,161.6,215.07,214.87,20.0]
[1731511686730,161.6,215.07,214.88,0.92993652]
[1731511687052,161.6,215.07,214.87,25.26232073]
[1731511687533,0.1,215.05,214.85,20.0]
[1731511687930,161.6,215.07,214.9,20.0]
[1731511688123,161.6,215.14,214.91,6.1921791]
[1731511688328,161.6,215.13,214.96,31.8934]
[1731511688654,161.6,215.18,214.99,20.0]
[1731511688820,161.6,215.19,214.99,20.0]
[1731511689034,0.1,215.18,214.99,20.0]
[1731511689513,0.1,215.15,214.98,20.0]
[1731511689730,45.4724,215.28,214.97,4.621]
[1731511689731,0.1,215.12,214.97,20.0]
[1731511690033,161.6,215.11,214.97,20.0]
[1731511690718,0.1,215.16,214.97,20.0]
[1731511691321,0.1,215.17,214.97,20.0]
[1731511691538,161.6,215.16,214.97,25.26232073]
[1731511691733,161.6,215.18,214.97,25.26232073]
[1731511692455,45.3724,215.28,215.01,20.0]
[1731511692456,0.1,215.23,215.01,20.0]
[1731511692758,0.1,215.23,215.03,20.0]
[1731511693143,0.1,215.23,215.04,0.92928569]
[1731511694082,0.1,215.18,215.02,12.2024]
[1731511694305,0.1,215.14,215.02,12.2024]
[1731511694488,0.1,215.14,215.02,17.75125959]
[1731511695511,0.1,215.15,215.02,17.75125959]
[1731511695641,0.1,215.16,215.02,17.75125959]
[1731511695837,161.6,215.17,215.02,17.75125959]
[1731511695976,0.2,215.13,215.02,17.75125959]
[1731511696188,0.1,215.08,214.92,12.2024]
[1731511696571,0.1,215.01,214.92,12.2024]
[1731511696818,161.6,215.06,214.92,17.88116978]
[1731511697000,0.1,215.12,214.92,17.88116978]
[1731511697182,0.1,215.1,214.92,17.88116978]
[1731511697304,0.1,215.15,214.92,22.94925207]
[1731511697797,161.6,215.14,214.93,5.99777144]
[1731511697806,161.7,215.13,214.93,5.99777144]
[1731511697964,161.7,215.13,214.93,5.06808229]
[1731511698179,161.6,215.13,214.93,75.06808229]
[1731511698386,161.6,215.18,214.96,20.0]
[1731511698566,161.7,215.17,214.97,5.99760036]
[1731511698762,161.7,215.17,214.98,20.0]
[1731511699428,0.1,215.19,214.98,20.0]
[1731511699629,161.7,215.2,215.0,20.0]
[1731511699841,0.2,215.15,215.0,5.06808229]
[1731511700031,0.1,215.13,214.99,12.2024]
[1731511700263,0.1,215.09,214.99,12.2024]
[1731511700452,0.1,215.06,214.99,12.2024]
[1731511700645,0.1,215.06,214.95,35.74882021]
[1731511700646,161.6,215.07,214.95,35.74882021]
[1731511701026,0.1,215.13,214.95,35.74882021]
[1731511701232,161.6,215.12,214.95,35.74882021]
[1731511701740,161.6,215.14,214.96,20.0]
[1731511701940,0.1,215.12,214.96,20.0]
[1731511702137,161.7,215.14,214.96,20.0]
[1731511702332,161.6,215.13,214.96,20.0]
[1731511702526,0.1,215.12,214.95,35.74882021]
[1731511702740,0.2,215.19,214.96,76.0933865]
[1731511702995,0.1,215.21,215.0,12.0228]
[1731511703246,0.1,215.21,215.01,5.99739535]
[1731511703452,161.6,215.22,215.01,5.99739535]
[1731511703656,161.6,215.22,215.02,70.0]
[1731511703852,161.6,215.22,215.03,25.99732789]
[1731511704035,161.6,215.22,215.05,20.0]
[1731511704344,161.6,215.22,215.06,0.92927638]
[1731511704526,0.1,215.28,215.09,20.0]
[1731511704737,0.1,215.28,215.1,5.9970897]
[1731511705242,161.6,215.31,215.11,20.0]
[1731511705448,0.1,215.29,215.12,0.9289437]
[1731511706330,0.1,215.25,215.12,0.9289437]
[1731511706659,0.1,215.16,215.09,5.66171922]
[1731511706834,0.1,215.15,214.94,43.9274]
[1731511707167,0.1,215.14,214.95,2.00311418]
[1731511707518,161.7,215.15,214.95,2.00311418]
[1731511707519,161.6,215.15,214.96,0.92971681]
[1731511707908,161.6,215.15,214.97,2.27445684]
[1731511707924,161.6,215.15,214.99,70.0]
[1731511708287,0.1,215.2,215.0,0.92950865]
[1731511708293,161.7,215.2,215.0,0.92950865]
[1731511708572,161.6,215.2,215.0,0.92950865]
[1731511708873,0.1,215.22,215.0,20.92950865]
[1731511709036,0.1,215.22,215.02,20.0]
[1731511709257,0.1,215.22,215.03,0.92930321]
[1731511709455,161.6,215.22,215.05,51.8934]
[1731511709653,0.2,215.27,215.05,51.8934]
[1731511709953,0.1,215.27,215.07,70.0]
[1731511710147,0.1,215.28,215.08,0.92906556]
[1731511710344,0.1,215.22,215.05,12.2024]
[1731511710547,0.1,215.2,215.05,12.2024]
[1731511710741,0.1,215.22,215.05,12.2024]
[1731511711142,0.1,215.16,215.05,12.2024]
[1731511711341,0.1,215.22,215.06,20.0]
[1731511711542,161.7,215.22,215.06,20.0]
[1731511711939,161.6,215.22,215.06,20.92932419]
[1731511712252,0.2,215.28,215.06,20.92932419]
[1731511712452,0.2,215.28,215.08,20.0]
[1731511712649,0.1,215.28,215.08,20.92905035]
[1731511712843,0.2,215.26,215.08,20.92905035]
[1731511713048,161.6,215.33,215.08,20.92905035]
[1731511713049,159.3,215.33,215.08,20.92905035]
[1731511713245,159.3,215.32,215.08,20.0]
[1731511713470,159.3,215.32,215.06,20.0]
[1731511713640,20.0,215.23,214.93,12.2024]
[1731511713839,20.0,215.21,214.93,12.2024]
[1731511714035,20.0,215.21,214.93,87.84935823]
[1731511714660,20.0,215.21,214.93,17.94935823]
[1731511714857,159.3,215.2,214.94,0.1]
[1731511715166,159.3,215.2,214.98,0.1]
[1731511715335,159.3,215.19,214.99,70.0]
[1731511715551,159.3,215.25,215.01,0.1]
[1731511715763,159.3,215.24,215.03,20.0]
[1731511715955,159.3,215.3,215.07,20.1]
[1731511716163,159.3,215.29,215.07,20.0]
[1731511716350,159.3,215.28,215.07,20.0]
[1731511716563,159.3,215.28,215.03,5.56502864]
[1731511716739,16.8265,215.33,215.0,4.03984784]
[1731511716740,159.4,215.27,215.0,4.03984784]
[1731511716943,37.03233235,215.24,214.93,0.1]
[1731511717288,20.0,215.19,214.92,5.60173727]
[1731511717615,20.0,215.17,214.89,101.441]
[1731511717777,20.0,215.17,214.9,17.9368531]
[1731511717938,159.3,215.18,214.92,70.0]
[1731511718142,159.3,215.19,214.95,70.0]
[1731511718352,159.3,215.19,214.93,4.03984784]
[1731511718958,159.3,215.19,214.93,24.03984784]
[1731511719157,159.3,215.19,214.96,20.0]
[1731511719364,159.3,215.19,214.9,17.9368531]
[1731511719365,57.03233235,215.17,214.9,17.9368531]
[1731511720453,20.0,215.15,214.9,17.9368531]
[1731511722074,32.4844,215.09,214.9,5.7344531]
[1731511722250,20.0,215.06,214.83,12.2024]
[1731511722452,50.07443235,215.03,214.73,70.0]
[1731511722672,179.3,215.02,214.73,75.55952146]
[1731511723023,20.0,215.0,214.73,75.55952146]
[1731511723164,20.0,215.0,214.74,4.03984784]
[1731511723350,20.0,215.0,214.74,8.53034735]
[1731511723768,159.3,215.0,214.76,70.0]
[1731511723965,159.3,214.99,214.77,4.03984784]
[1731511724549,159.3,214.99,214.79,70.0]
[1731511724761,12.9421,215.03,214.83,32.2024]
[1731511725078,12.9421,215.03,214.84,9.06979488]
[1731511725251,159.3,215.02,214.81,34.57924784]
[1731511725445,12.9421,215.03,214.85,5.02994704]
[1731511725658,12.9421,215.03,214.86,4.03984784]
[1731511725864,12.9421,215.03,214.87,5.02994704]
[1731511726068,12.9421,215.03,214.86,4.03984784]
[1731511726243,12.9421,215.03,214.87,4.03984784]
[1731511726567,159.3,215.02,214.83,4.03984784]
[1731511727457,159.3,215.02,214.83,9.06979488]
[1731511728021,12.9421,215.03,214.87,70.0]
[1731511728395,12.9421,215.03,214.85,20.0]
[1731511728396,45.0133,215.09,214.91,20.0]
[1731511728691,159.3,215.08,214.88,8.60256957]
[1731511728978,159.3,215.08,214.85,20.0]
[1731511728993,159.3,215.07,214.86,4.03984784]
[1731511730356,159.3,215.07,214.82,20.0]
[1731511730555,179.3,215.06,214.83,4.03984784]
[1731511730969,159.3,215.06,214.85,70.0]
[1731511731153,159.3,215.06,214.86,4.03984784]
[1731511731683,159.3,215.08,214.88,70.0]
[1731511731863,45.0133,215.09,214.89,24.96975363]
[1731511732189,159.3,215.19,214.97,20.0]
[1731511732488,12.2197,215.22,215.03,20.0]
[1731511732688,32.5948,215.23,215.04,14.70718328]
[1731511732973,12.2197,215.28,215.05,20.0]
[1731511733244,159.3,215.27,215.06,4.53673673]
[1731511733476,37.03233235,215.25,215.06,4.53673673]
[1731511733662,37.03233235,215.19,214.95,31.1334]
[1731511733868,12.1125,215.16,214.95,31.1334]
[1731511734061,12.1125,215.16,214.95,5.52565055]
[1731511734264,12.1125,215.16,214.94,4.53673673]
[1731511734454,12.1125,215.16,214.95,4.53673673]
[1731511736181,216.33233235,215.15,214.94,5.70989542]
[1731511736508,57.13233235,215.13,214.88,48.63253673]
[1731511736667,20.0,215.11,214.89,4.53673673]
[1731511737560,20.0,215.09,214.89,4.53673673]
[1731511737752,159.4,215.1,214.89,4.53673673]
[1731511737753,159.3,215.1,214.89,4.53673673]
[1731511737957,20.0,215.09,214.89,4.53673673]
[1731511738666,159.3,215.1,214.89,24.53673673]
[1731511738859,159.3,215.1,214.89,29.16351958]
[1731511740070,20.0,215.14,214.89,29.16351958]
[1731511740276,159.3,215.13,214.91,70.0]
[1731511740454,159.3,215.13,214.92,30.09327059]
[1731511740970,159.3,215.13,214.92,4.53673673]
[1731511741359,159.3,215.13,214.93,20.0]
[1731511741570,159.3,215.15,214.94,4.53673673]
[1731511741976,20.0,215.14,214.94,4.53673673]
[1731511742206,20.1,215.12,214.88,49.61466853]
[1731511742445,20.0,215.1,214.9,4.53673673]
[1731511744172,159.3,215.11,214.9,4.53673673]
[1731511745066,159.3,215.14,214.92,20.0]
[1731511745381,159.3,215.14,214.93,4.53673673]
[1731511745706,159.3,215.13,214.93,4.53673673]
[1731511746581,12.1125,215.16,214.95,20.0]
[1731511746582,171.4125,215.16,214.95,20.0]
[1731511746778,171.4125,215.16,214.96,4.53673673]
[1731511747568,159.3,215.15,214.96,4.53673673]
[1731511747761,20.0,215.14,214.96,4.53673673]
[1731511748059,159.3,215.15,214.96,4.53673673]
[1731511748463,159.3,215.16,214.96,4.53673673]
[1731511748661,159.3,215.16,214.97,20.0]
[1731511748871,200.97883235,215.22,214.98,4.53673673]
[1731511749065,159.3,215.21,214.99,12.2024]
[1731511749263,159.3,215.21,215.0,36.28364784]
[1731511749455,159.3,215.21,215.01,5.32992396]
[1731511749658,159.3,215.21,215.02,4.46754784]
[1731511749856,159.3,215.21,215.03,5.32992396]
[1731511750055,159.3,215.22,215.04,4.46754784]
[1731511751059,159.3,215.21,215.0,31.8161]
[1731511751282,159.3,215.21,215.01,4.46754784]
[1731511751583,159.3,215.2,215.01,9.7974718]
[1731511752278,159.3,215.2,215.02,5.32992396]
[1731511752462,159.3,215.2,215.03,20.0]
[1731511752674,159.3,215.23,215.04,5.32992396]
[1731511752858,159.3,215.29,215.05,29.08854784]
[1731511753066,159.3,215.28,215.07,20.0]
[1731511753262,159.3,215.28,215.08,9.7974718]
[1731511753467,159.3,215.28,215.01,20.0]
[1731511753683,159.3,215.28,215.0,36.4471]
[1731511753684,159.3,215.28,215.05,4.46754784]
[1731511753882,159.3,215.27,215.05,4.46754784]
[1731511754066,20.0,215.26,215.05,4.46754784]
[1731511754266,159.3,215.25,215.06,20.0]
[1731511754456,159.3,215.25,215.06,29.7974718]
[1731511754657,159.3,215.25,215.07,4.46754784]
[1731511754971,37.83797378,215.35,215.07,4.46754784]
[1731511754972,159.3,215.34,215.11,20.0]
[1731511755281,159.3,215.41,215.22,20.0]
[1731511755487,0.4836988,215.44,215.23,5.06049228]
[1731511755673,0.4836988,215.44,215.24,20.0]
[1731511755865,0.4836988,215.44,215.25,5.06049228]
[1731511756184,0.4836988,215.44,215.26,20.0]
[1731511756389,0.4836988,215.44,215.31,70.0]
[1731511756682,0.4836988,215.44,215.32,30.89597179]
[1731511757178,0.4836988,215.44,215.32,5.06049228]
[1731511757385,0.4836988,215.44,215.3,5.06049228]
[1731511758081,0.4836988,215.44,215.22,4.631]
[1731511758082,20.1,215.42,215.21,47.90479228]
[1731511758319,0.1,215.39,215.21,48.58117049]
[1731511758462,179.3,215.38,215.15,17.26289228]
[1731511758668,20.0,215.36,215.15,17.26289228]
[1731511758972,159.3,215.37,215.15,23.09837179]
[1731511759176,159.3,215.36,215.16,5.83547951]
[1731511759371,20.0,215.35,215.17,5.06049228]
[1731511759581,159.3,215.36,215.17,10.89597179]
[1731511759778,159.3,215.36,215.18,5.83547951]
[1731511760091,20.0,215.35,215.18,10.89597179]
[1731511760469,159.3,215.36,215.2,20.0]
[1731511760669,159.3,215.39,215.21,10.89597179]
[1731511761166,159.3,215.39,215.22,5.06049228]
[1731511761487,159.3,215.38,215.15,12.2024]
[1731511761688,159.3,215.37,215.18,4.06049228]
[1731511761889,159.3,215.36,215.19,5.83547951]
[1731511762178,179.3,215.35,215.15,12.2024]
[1731511762386,159.3,215.35,215.16,5.83547951]
[1731511762568,159.3,215.34,215.16,10.82374957]
[1731511763694,20.0,215.4,215.17,20.0]
[1731511763986,159.3,215.41,215.2,20.0]
[1731511764283,159.3,215.42,215.22,20.0]
[1731511764491,159.3,215.42,215.23,4.98827006]
[1731511765265,159.3,215.41,215.15,12.2024]
[1731511765468,179.4,215.4,215.16,24.98827006]
[1731511765683,179.3,215.4,215.16,30.82374957]
[1731511765883,179.4,215.4,215.16,30.82374957]
[1731511766066,179.3,215.4,215.16,30.82374957]
[1731511766575,159.3,215.39,215.21,70.0]
[1731511766773,159.3,215.43,215.22,31.75237682]
[1731511766977,159.3,215.43,215.22,30.82374957]
[1731511767477,159.3,215.42,215.22,10.82374957]
[1731511767698,0.4836988,215.44,215.26,20.0]
[1731511767901,0.4836988,215.44,215.28,20.0]
[1731511768183,0.4836988,215.44,215.29,10.82374957]
[1731511768696,0.4836988,215.44,215.3,20.0]
[1731511768902,0.4836988,215.44,215.31,10.82374957]
[1731511769970,0.4836988,215.44,215.31,5.83547951]
[1731511770192,0.4836988,215.44,215.32,4.98827006]
[1731511770486,0.4836988,215.44,215.32,10.82374957]
[1731511771270,0.4836988,215.44,215.33,5.83547951]
[1731511771483,0.4836988,215.44,215.33,10.82374957]
[1731511772076,0.4836988,215.44,215.34,4.98827006]
[1731511772293,0.4836988,215.44,215.34,10.82374957]
[1731511772597,0.4836988,215.44,215.36,12.2024]
[1731511772780,0.4836988,215.44,215.37,10.82374957]
[1731511774403,0.4836988,215.44,215.37,4.98827006]
[1731511774580,0.4836988,215.44,215.38,5.83547951]
[1731511774904,0.4836988,215.44,215.39,4.98827006]
[1731511775077,0.4836988,215.44,215.4,5.83547951]
[1731511775285,0.4836988,215.44,215.41,4.98827006]
[1731511775480,0.4836988,215.44,215.42,5.83547951]
[1731511775798,0.4836988,215.44,215.43,4.98827006]
[1731511776092,159.3,215.63,215.44,20.0]
[1731511776272,159.3,215.63,215.45,4.98827006]
[1731511776596,159.3,215.65,215.46,5.83547951]
[1731511776779,159.3,215.65,215.47,4.98827006]
[1731511776974,159.3,215.65,215.48,5.83547951]
[1731511777300,159.7495152,215.66,215.49,4.98827006]
[1731511777505,159.7495152,215.66,215.5,5.83547951]
[1731511777701,159.7495152,215.66,215.49,4.98827006]
[1731511777992,159.7495152,215.66,215.5,4.98827006]
[1731511778173,159.7495152,215.66,215.46,4.98827006]
[1731511778372,0.1,215.64,215.46,4.98827006]
[1731511778575,0.1,215.62,215.41,4.98827006]
[1731511778773,159.3,215.61,215.42,4.98827006]
[1731511778986,20.0,215.6,215.43,4.98827006]
[1731511779577,20.0,215.6,215.38,31.4099]
[1731511779776,20.0,215.6,215.39,4.98827006]
[1731511779987,20.0,215.6,215.39,10.24055513]
[1731511780407,20.1,215.6,215.39,4.98827006]
[1731511780995,20.0,215.58,215.39,4.98827006]
[1731511781382,159.3,215.57,215.39,4.98827006]
[1731511781604,20.1,215.63,215.39,10.24055513]
[1731511781898,20.0,215.61,215.39,10.24055513]
[1731511782205,159.7495152,215.66,215.45,20.0]
[1731511782387,0.4495152,215.66,215.46,10.94905513]
[1731511782702,0.4495152,215.66,215.49,70.0]
[1731511782890,0.4495152,215.66,215.49,5.75784062]
[1731511783083,0.4495152,215.66,215.5,5.75784062]
[1731511783283,157.2495152,215.71,215.5,5.75784062]
[1731511783495,157.2495152,215.7,215.5,5.75784062]
[1731511784096,20.0,215.69,215.5,5.75784062]
[1731511784406,157.2495152,215.7,215.5,5.75784062]
[1731511784793,157.3495152,215.73,215.53,43.4335]
[1731511785111,157.3495152,215.74,215.54,10.45021624]
[1731511785302,0.1,215.71,215.54,10.45021624]
[1731511785498,0.1,215.71,215.53,43.4335]
[1731511785499,157.2495152,215.7,215.53,43.4335]
[1731511785691,0.1,215.69,215.53,12.0236]
[1731511786206,20.0,215.69,215.53,16.71597562]
[1731511786402,20.0,215.67,215.5,5.67135415]
[1731511786615,20.0,215.67,215.47,43.6123]
[1731511786905,20.1,215.67,215.47,43.6123]
[1731511787102,157.2495152,215.66,215.47,43.6123]
[1731511787311,20.0,215.64,215.47,53.87774949]
[1731511787895,20.0,215.64,215.48,10.45021624]
[1731511788492,5.7394427,215.73,215.48,10.45021624]
[1731511788493,157.2495152,215.69,215.49,74.631]
[1731511788695,157.2495152,215.71,215.51,4.631]
[1731511788996,157.2495152,215.73,215.53,4.631]
[1731511789208,157.2495152,215.73,215.54,10.87704957]
[1731511789401,0.1,215.74,215.54,10.87704957]
[1731511789402,157.3495152,215.74,215.54,10.87704957]
[1731511790094,157.2495152,215.74,215.54,10.87704957]
[1731511790608,20.0,215.73,215.54,10.87704957]
[1731511791689,157.2495152,215.72,215.54,10.87704957]
[1731511792006,20.0,215.71,215.54,10.87704957]
[1731511792182,157.2495152,215.7,215.54,5.75784062]
[1731511792382,20.0,215.69,215.53,5.64880623]
[1731511792588,20.0,215.69,215.48,5.75784062]
[1731511792589,177.2495152,215.69,215.48,5.75784062]
[1731511792791,177.3495152,215.69,215.53,5.75784062]
[1731511792994,177.2495152,215.69,215.53,5.75784062]
[1731511793195,177.2495152,215.69,215.54,4.32310339]
[1731511793405,177.2495152,215.69,215.55,5.75784062]
[1731511793588,177.2495152,215.69,215.56,4.56288117]
[1731511793800,20.0,215.71,215.56,10.32072179]
[1731511794098,0.1,215.69,215.47,43.6123]
[1731511794299,157.2495152,215.68,215.47,43.6123]
[1731511794502,157.2495152,215.69,215.48,3.94350339]
[1731511794909,157.2495152,215.69,215.48,9.12587735]
[1731511795211,157.2495152,215.7,215.49,5.18237396]
[1731511795508,157.2495152,215.69,215.5,4.20422562]
[1731511795704,194.28184755,215.72,215.5,4.20422562]
[1731511795901,157.2495152,215.72,215.5,4.20422562]
[1731511796106,157.2495152,215.72,215.51,5.18237396]
[1731511796413,20.0,215.71,215.52,4.45050339]
[1731511796613,20.0,215.69,215.52,4.45050339]
[1731511796991,0.1,215.73,215.52,4.45050339]
[1731511796992,20.0,215.71,215.53,9.81337396]
[1731511797186,20.0,215.71,215.53,5.18237396]
[1731511797500,20.0,215.71,215.53,9.39714402]
[1731511797698,20.0,215.71,215.54,4.46032562]
[1731511797904,20.0,215.71,215.54,9.96119958]
[1731511798294,20.0,215.71,215.55,5.50087396]
[1731511798494,20.0,215.71,215.56,4.46032562]
[1731511798995,20.0,215.64,215.47,43.6123]
[1731511799302,157.2495152,215.63,215.47,43.6123]
[1731511799597,20.0,215.64,215.47,43.6123]
[1731511799809,20.0,215.65,215.47,43.6123]
[1731511799988,20.0,215.65,215.47,49.15900742]
[1731511800189,157.2495152,215.66,215.47,49.15900742]
[1731511800408,20.0,215.65,215.48,4.27139228]
[1731511800603,22.66097844,215.61,215.36,12.2024]
[1731511800802,20.0,215.59,215.36,12.2024]
[1731511801114,157.2495152,215.6,215.37,79.25436068]
[1731511801324,31.8595,215.7,215.4,70.0]
[1731511801325,157.2495152,215.63,215.4,70.0]
[1731511801606,157.2495152,215.63,215.42,4.631]
[1731511801907,42.76097844,215.67,215.44,4.631]
[1731511802403,42.76097844,215.67,215.44,24.631]
[1731511802404,42.66097844,215.67,215.44,24.631]
[1731511802594,42.66097844,215.67,215.45,4.50900339]
[1731511802595,20.0,215.67,215.45,4.50900339]
[1731511802911,4.6369,215.66,215.46,4.631]
[1731511803108,42.76097844,215.67,215.46,4.631]
[1731511803412,157.2495152,215.66,215.47,4.51405895]
[1731511803615,157.2495152,215.65,215.47,4.51405895]
[1731511803986,157.2495152,215.65,215.47,24.51405895]
[1731511804820,177.2495152,215.64,215.47,4.74300339]
[1731511805503,0.1,215.61,215.47,4.74300339]
[1731511805713,20.0,215.56,215.35,12.2024]
[1731511805898,157.2495152,215.55,215.38,4.74300339]
[1731511806095,20.0,215.56,215.38,4.74300339]
[1731511806611,157.2495152,215.57,215.38,4.74300339]